[Event "*** Titled Tuesday Blitz"]
[Site "Chess.com"]
[Date "2020.11.03"]
[Round "4"]
[White "WonderChampion"]
[Black "marabu44"]
[Result "0-1"]
[WhiteElo "2012"]
[BlackElo "2259"]
[TimeControl "180+1"]
[EndTime "10:42:24 PST"]
[Termination "marabu44 won by checkmate"]

1. e4 {[%clk 0:03:00.9]} 1... e5 {[%clk 0:02:59.4]} 2. Nf3 {[%clk 0:03:00.3]}
2... Nc6 {[%clk 0:02:58.9]} 3. Bc4 {[%clk 0:03:00.1]} 3... d6 {[%clk 0:02:58.5]}
4. Nc3 {[%clk 0:02:57]} 4... Be6 {[%clk 0:02:55.1]} 5. Bxe6 {[%clk 0:02:55.6]}
5... fxe6 {[%clk 0:02:54.6]} 6. O-O {[%clk 0:02:54.6]} 6... Nf6 {[%clk
0:02:54.1]} 7. d3 {[%clk 0:02:53.9]} 7... Qd7 {[%clk 0:02:52.7]} 8. Bg5 {[%clk
0:02:52.1]} 8... Be7 {[%clk 0:02:51.8]} 9. Re1 {[%clk 0:02:49.1]} 9... O-O
{[%clk 0:02:51.1]} 10. d4 {[%clk 0:02:47.1]} 10... Rad8 {[%clk 0:02:43.3]} 11.
d5 {[%clk 0:02:44.2]} 11... exd5 {[%clk 0:02:40.2]} 12. Nxd5 {[%clk 0:02:40.9]}
12... Nxd5 {[%clk 0:02:38.4]} 13. exd5 {[%clk 0:02:41.8]} 13... Nb8 {[%clk
0:02:35.8]} 14. Bxe7 {[%clk 0:02:40.3]} 14... Qxe7 {[%clk 0:02:35.5]} 15. Qd3
{[%clk 0:02:40.3]} 15... Qf6 {[%clk 0:02:33.7]} 16. Qe4 {[%clk 0:02:39.1]} 16...
Nd7 {[%clk 0:02:32.3]} 17. Qg4 {[%clk 0:02:35.7]} 17... Qg6 {[%clk 0:02:29.6]}
18. Qe6+ {[%clk 0:02:31.8]} 18... Qf7 {[%clk 0:02:28.8]} 19. Ng5 {[%clk
0:02:28.9]} 19... Qxe6 {[%clk 0:02:23.2]} 20. Nxe6 {[%clk 0:02:28.2]} 20... Nb6
{[%clk 0:02:18.9]} 21. Nxd8 {[%clk 0:02:23.3]} 21... Rxd8 {[%clk 0:02:17.1]} 22.
Rad1 {[%clk 0:02:24.2]} 22... Rf8 {[%clk 0:02:14.9]} 23. b3 {[%clk 0:02:22.7]}
23... a5 {[%clk 0:02:12.8]} 24. c4 {[%clk 0:02:22.1]} 24... Nd7 {[%clk
0:02:12.4]} 25. Re3 {[%clk 0:02:19.5]} 25... b6 {[%clk 0:02:08.4]} 26. a3 {[%clk
0:02:16.8]} 26... Rf4 {[%clk 0:02:06.4]} 27. g3 {[%clk 0:02:12.5]} 27... Rf6
{[%clk 0:02:04.2]} 28. Rde1 {[%clk 0:02:10.7]} 28... g5 {[%clk 0:02:02.7]} 29.
Re4 {[%clk 0:02:04.5]} 29... Rf7 {[%clk 0:01:58]} 30. b4 {[%clk 0:02:01]} 30...
a4 {[%clk 0:01:55.2]} 31. Rg4 {[%clk 0:01:56.5]} 31... h6 {[%clk 0:01:54.2]} 32.
Rge4 {[%clk 0:01:53.2]} 32... Rf3 {[%clk 0:01:51.8]} 33. R1e3 {[%clk 0:01:51.5]}
33... Rf7 {[%clk 0:01:49.9]} 34. Rc3 {[%clk 0:01:41]} 34... Kg7 {[%clk
0:01:43.6]} 35. Kg2 {[%clk 0:01:39.8]} 35... Kg6 {[%clk 0:01:42.6]} 36. h4
{[%clk 0:01:33.3]} 36... Rf6 {[%clk 0:01:35.8]} 37. hxg5 {[%clk 0:01:31.2]}
37... hxg5 {[%clk 0:01:35.5]} 38. Re1 {[%clk 0:01:16.3]} 38... g4 {[%clk
0:01:29.8]} 39. Re4 {[%clk 0:01:14.6]} 39... Kg5 {[%clk 0:01:29.2]} 40. f3
{[%clk 0:01:11.9]} 40... gxf3+ {[%clk 0:01:27.4]} 41. Rxf3 {[%clk 0:01:12.8]}
41... Rxf3 {[%clk 0:01:20.5]} 42. Kxf3 {[%clk 0:01:13.7]} 42... Nf6 {[%clk
0:01:21]} 43. Re2 {[%clk 0:01:11.5]} 43... b5 {[%clk 0:01:19.4]} 44. c5 {[%clk
0:01:08.4]} 44... Nxd5 {[%clk 0:01:14.6]} 45. cxd6 {[%clk 0:01:06.7]} 45... cxd6
{[%clk 0:01:13.1]} 46. Rd2 {[%clk 0:01:04.8]} 46... Nc3 {[%clk 0:01:08.2]} 47.
Rxd6 {[%clk 0:01:02.5]} 47... Kf5 {[%clk 0:01:07.9]} 48. g4+ {[%clk 0:00:56.3]}
48... Kg5 {[%clk 0:01:07.4]} 49. Rb6 {[%clk 0:00:36.9]} 49... e4+ {[%clk
0:01:04.7]} 50. Kg3 {[%clk 0:00:30.3]} 50... e3 {[%clk 0:01:02.8]} 51. Re6
{[%clk 0:00:25.5]} 51... e2 {[%clk 0:01:01.4]} 52. Re3 {[%clk 0:00:20]} 52...
Kf6 {[%clk 0:00:57.9]} 53. Kh4 {[%clk 0:00:15.5]} 53... Kg6 {[%clk 0:00:52.8]}
54. g5 {[%clk 0:00:14.4]} 54... Kf5 {[%clk 0:00:49.6]} 55. Kh5 {[%clk
0:00:13.7]} 55... Nd5 {[%clk 0:00:48.9]} 56. Re8 {[%clk 0:00:12.6]} 56... Nf4+
{[%clk 0:00:46.5]} 57. Kh6 {[%clk 0:00:11.9]} 57... Ne6 {[%clk 0:00:46.7]} 58.
g6 {[%clk 0:00:07.1]} 58... e1=Q {[%clk 0:00:45.6]} 59. g7 {[%clk 0:00:05.5]}
59... Qh4# {[%clk 0:00:44.7]} 0-1

[Event "*** Titled Tuesday Blitz"]
[Site "Chess.com"]
[Date "2020.11.03"]
[Round "4"]
[White "ethylalcohol"]
[Black "annamaja"]
[Result "0-1"]
[WhiteElo "2092"]
[BlackElo "2298"]
[TimeControl "180+1"]
[EndTime "10:42:26 PST"]
[Termination "annamaja won on time"]

1. d4 {[%clk 0:03:00.9]} 1... d5 {[%clk 0:02:59.9]} 2. Nf3 {[%clk 0:03:00.5]}
2... Nf6 {[%clk 0:02:59.7]} 3. Bf4 {[%clk 0:03:00.6]} 3... e6 {[%clk 0:02:59.9]}
4. e3 {[%clk 0:03:01]} 4... Bd6 {[%clk 0:02:58.1]} 5. Bg3 {[%clk 0:03:01.5]}
5... O-O {[%clk 0:02:56.9]} 6. Nbd2 {[%clk 0:03:00.6]} 6... c5 {[%clk
0:02:57.1]} 7. Bxd6 {[%clk 0:02:40.6]} 7... Qxd6 {[%clk 0:02:56.9]} 8. dxc5
{[%clk 0:02:39]} 8... Qxc5 {[%clk 0:02:57.8]} 9. c4 {[%clk 0:02:39.3]} 9... Nc6
{[%clk 0:02:52.3]} 10. cxd5 {[%clk 0:02:32.9]} 10... Nxd5 {[%clk 0:02:51.5]} 11.
Rc1 {[%clk 0:02:29]} 11... Qa5 {[%clk 0:02:44.9]} 12. Bc4 {[%clk 0:02:24.4]}
12... Bd7 {[%clk 0:02:34.8]} 13. O-O {[%clk 0:02:24]} 13... Rac8 {[%clk
0:02:33]} 14. Nb3 {[%clk 0:02:01.9]} 14... Qb6 {[%clk 0:02:15.7]} 15. Bxd5
{[%clk 0:01:49.6]} 15... exd5 {[%clk 0:02:16.6]} 16. Qxd5 {[%clk 0:01:47.6]}
16... Be6 {[%clk 0:02:15.8]} 17. Qc5 {[%clk 0:01:26.2]} 17... Qxc5 {[%clk
0:01:55.9]} 18. Nxc5 {[%clk 0:01:25.9]} 18... Bxa2 {[%clk 0:01:51.8]} 19. Nxb7
{[%clk 0:00:57.9]} 19... Bd5 {[%clk 0:01:49.9]} 20. Nd6 {[%clk 0:00:49.9]} 20...
Rb8 {[%clk 0:01:34.4]} 21. e4 {[%clk 0:00:48.8]} 21... Be6 {[%clk 0:00:46.4]}
22. Rxc6 {[%clk 0:00:48]} 22... Rxb2 {[%clk 0:00:45.8]} 23. Nd4 {[%clk 0:00:48]}
23... Ba2 {[%clk 0:00:36.8]} 24. N4f5 {[%clk 0:00:43.3]} 24... g6 {[%clk
0:00:26.1]} 25. Ne3 {[%clk 0:00:39.5]} 25... a5 {[%clk 0:00:17.7]} 26. Ra6
{[%clk 0:00:34.5]} 26... Rd2 {[%clk 0:00:16]} 27. Ndc4 {[%clk 0:00:31.8]} 27...
Rd4 {[%clk 0:00:13.4]} 28. Nxa5 {[%clk 0:00:21.3]} 28... Rxe4 {[%clk 0:00:11.9]}
29. Nc6 {[%clk 0:00:15.6]} 29... Be6 {[%clk 0:00:08.6]} 30. Rd1 {[%clk
0:00:14.3]} 30... Kg7 {[%clk 0:00:08.1]} 31. g3 {[%clk 0:00:13.2]} 31... Rc8
{[%clk 0:00:07.1]} 32. Nd4 {[%clk 0:00:12.5]} 32... Bd7 {[%clk 0:00:02.9]} 33.
Ra7 {[%clk 0:00:12.3]} 33... Be8 {[%clk 0:00:02.7]} 34. Nf1 {[%clk 0:00:08.8]}
34... Kf6 {[%clk 0:00:02.1]} 35. Nf3 {[%clk 0:00:07.8]} 35... Re7 {[%clk
0:00:02.1]} 36. Rd6+ {[%clk 0:00:07.2]} 36... Re6 {[%clk 0:00:02.5]} 37. Rxe6+
{[%clk 0:00:07.3]} 37... Kxe6 {[%clk 0:00:03.4]} 38. Nd4+ {[%clk 0:00:07.3]}
38... Kf6 {[%clk 0:00:03.9]} 39. Ne3 {[%clk 0:00:06.9]} 39... Rd8 {[%clk
0:00:03.8]} 40. Ra6+ {[%clk 0:00:06.3]} 40... Kg7 {[%clk 0:00:03.8]} 41. Nf3
{[%clk 0:00:04.8]} 41... Bb5 {[%clk 0:00:03.8]} 42. Ra7 {[%clk 0:00:03.4]} 42...
Bc6 {[%clk 0:00:04.1]} 43. Ne5 {[%clk 0:00:01.8]} 43... Be8 {[%clk 0:00:04.7]}
0-1

[Event "*** Titled Tuesday Blitz"]
[Site "Chess.com"]
[Date "2020.11.03"]
[Round "4"]
[White "CaspiIsrael"]
[Black "Chuchofrio1"]
[Result "1-0"]
[WhiteElo "2610"]
[BlackElo "2349"]
[TimeControl "180+1"]
[EndTime "10:42:27 PST"]
[Termination "CaspiIsrael won by checkmate"]

1. e4 {[%clk 0:02:58.5]} 1... e5 {[%clk 0:02:59.5]} 2. Nf3 {[%clk 0:02:56.4]}
2... Nc6 {[%clk 0:02:59.4]} 3. d4 {[%clk 0:02:56.4]} 3... exd4 {[%clk
0:02:59.6]} 4. Nxd4 {[%clk 0:02:57.3]} 4... Qf6 {[%clk 0:02:59.8]} 5. Nf3 {[%clk
0:02:56.3]} 5... Bc5 {[%clk 0:02:58.6]} 6. Nc3 {[%clk 0:02:55.6]} 6... Ne5
{[%clk 0:02:57.7]} 7. Nd5 {[%clk 0:02:53.9]} 7... Nxf3+ {[%clk 0:02:56.9]} 8.
gxf3 {[%clk 0:02:53.1]} 8... Qh4 {[%clk 0:02:28.5]} 9. Qe2 {[%clk 0:02:36.8]}
9... Bb6 {[%clk 0:02:23.6]} 10. Be3 {[%clk 0:02:26.2]} 10... Qd8 {[%clk
0:02:13.1]} 11. Rg1 {[%clk 0:02:23.4]} 11... g6 {[%clk 0:01:54.7]} 12. Qd2
{[%clk 0:02:17.4]} 12... Bxe3 {[%clk 0:01:49.7]} 13. Qxe3 {[%clk 0:02:13.2]}
13... c6 {[%clk 0:01:49.9]} 14. Qd4 {[%clk 0:02:07.4]} 14... f6 {[%clk
0:01:48.8]} 15. Ne3 {[%clk 0:02:00.6]} 15... Qa5+ {[%clk 0:01:42.3]} 16. c3
{[%clk 0:02:00]} 16... Qe5 {[%clk 0:01:42.1]} 17. Qxe5+ {[%clk 0:01:54]} 17...
fxe5 {[%clk 0:01:43]} 18. Nc4 {[%clk 0:01:54.3]} 18... d5 {[%clk 0:01:38.5]} 19.
exd5 {[%clk 0:01:37.3]} 19... cxd5 {[%clk 0:01:39.4]} 20. Nxe5 {[%clk 0:01:38]}
20... Nf6 {[%clk 0:01:36.6]} 21. O-O-O {[%clk 0:01:20.5]} 21... O-O {[%clk
0:01:32.1]} 22. Bd3 {[%clk 0:01:07.2]} 22... Kg7 {[%clk 0:01:23.2]} 23. Bc2
{[%clk 0:01:01.2]} 23... Be6 {[%clk 0:01:19.1]} 24. Rge1 {[%clk 0:00:59.2]}
24... Rfe8 {[%clk 0:01:15.4]} 25. Rd4 {[%clk 0:00:57.6]} 25... Rad8 {[%clk
0:01:12.8]} 26. Kd2 {[%clk 0:00:57]} 26... Rd6 {[%clk 0:00:59]} 27. a4 {[%clk
0:00:53.2]} 27... a5 {[%clk 0:00:48.5]} 28. Bd3 {[%clk 0:00:51.8]} 28... Rf8
{[%clk 0:00:45.7]} 29. b4 {[%clk 0:00:40.1]} 29... Nh5 {[%clk 0:00:35.5]} 30.
bxa5 {[%clk 0:00:36.9]} 30... Nf4 {[%clk 0:00:30.4]} 31. Bf1 {[%clk 0:00:36.7]}
31... Bg8 {[%clk 0:00:20]} 32. Rb4 {[%clk 0:00:35.4]} 32... Rb8 {[%clk
0:00:18.5]} 33. Reb1 {[%clk 0:00:33.5]} 33... d4 {[%clk 0:00:14.5]} 34. Rxd4
{[%clk 0:00:30]} 34... Rxd4+ {[%clk 0:00:14.3]} 35. cxd4 {[%clk 0:00:30.9]}
35... Nd5 {[%clk 0:00:14.7]} 36. a6 {[%clk 0:00:30]} 36... b6 {[%clk 0:00:13.7]}
37. Bc4 {[%clk 0:00:28.5]} 37... Ra8 {[%clk 0:00:14]} 38. Bxd5 {[%clk
0:00:26.3]} 38... Bxd5 {[%clk 0:00:14.9]} 39. Rxb6 {[%clk 0:00:26.6]} 39... h5
{[%clk 0:00:13.2]} 40. Ke3 {[%clk 0:00:26.3]} 40... Kh7 {[%clk 0:00:14.1]} 41.
Nxg6 {[%clk 0:00:24.4]} 41... Bc4 {[%clk 0:00:12.1]} 42. Nf4 {[%clk 0:00:20.3]}
42... Bxa6 {[%clk 0:00:11.8]} 43. Nxh5 {[%clk 0:00:20.3]} 43... Bc4 {[%clk
0:00:12]} 44. Nf6+ {[%clk 0:00:19.2]} 44... Kg7 {[%clk 0:00:11.2]} 45. Ne4
{[%clk 0:00:18.5]} 45... Rxa4 {[%clk 0:00:10.6]} 46. Rd6 {[%clk 0:00:17.8]}
46... Ra3+ {[%clk 0:00:11]} 47. Kf4 {[%clk 0:00:17.5]} 47... Be2 {[%clk
0:00:11.6]} 48. Ng5 {[%clk 0:00:17.5]} 48... Ra4 {[%clk 0:00:11.2]} 49. h4
{[%clk 0:00:17.3]} 49... Bd3 {[%clk 0:00:10.9]} 50. h5 {[%clk 0:00:17.5]} 50...
Bb1 {[%clk 0:00:10.9]} 51. h6+ {[%clk 0:00:16.8]} 51... Kh8 {[%clk 0:00:11.8]}
52. Rd8# {[%clk 0:00:12.8]} 1-0

[Event "*** Titled Tuesday Blitz"]
[Site "Chess.com"]
[Date "2020.11.03"]
[Round "4"]
[White "Sharpchess22"]
[Black "talman67"]
[Result "0-1"]
[WhiteElo "2819"]
[BlackElo "2552"]
[TimeControl "180+1"]
[EndTime "10:42:28 PST"]
[Termination "talman67 won by checkmate"]

1. d4 {[%clk 0:03:00.9]} 1... Nf6 {[%clk 0:02:57.8]} 2. Bf4 {[%clk 0:02:59.2]}
2... e6 {[%clk 0:02:56.5]} 3. e3 {[%clk 0:02:59.2]} 3... c5 {[%clk 0:02:56.7]}
4. Nf3 {[%clk 0:02:58.4]} 4... cxd4 {[%clk 0:02:56.4]} 5. exd4 {[%clk
0:02:58.1]} 5... b6 {[%clk 0:02:56.6]} 6. Be2 {[%clk 0:02:56.2]} 6... Ba6 {[%clk
0:02:55.7]} 7. c4 {[%clk 0:02:53.6]} 7... Bb7 {[%clk 0:02:54.1]} 8. Nc3 {[%clk
0:02:52.6]} 8... Be7 {[%clk 0:02:51.9]} 9. O-O {[%clk 0:02:52]} 9... d6 {[%clk
0:02:45.7]} 10. h3 {[%clk 0:02:46.7]} 10... O-O {[%clk 0:02:45.4]} 11. d5 {[%clk
0:02:43.7]} 11... e5 {[%clk 0:02:45]} 12. Be3 {[%clk 0:02:42.5]} 12... Nbd7
{[%clk 0:02:44.5]} 13. a4 {[%clk 0:02:39.1]} 13... a5 {[%clk 0:02:32.4]} 14. Rb1
{[%clk 0:02:36.2]} 14... Nc5 {[%clk 0:02:28]} 15. Nd2 {[%clk 0:02:34.3]} 15...
Nfd7 {[%clk 0:02:18.7]} 16. b4 {[%clk 0:02:33]} 16... axb4 {[%clk 0:02:19.6]}
17. Rxb4 {[%clk 0:02:32.7]} 17... f5 {[%clk 0:02:19.9]} 18. f4 {[%clk 0:02:31]}
18... Bf6 {[%clk 0:02:09.9]} 19. Nb5 {[%clk 0:02:30.5]} 19... Qe7 {[%clk
0:02:07.2]} 20. Nf3 {[%clk 0:02:27.2]} 20... Rfe8 {[%clk 0:01:58.2]} 21. fxe5
{[%clk 0:02:17.5]} 21... Nxe5 {[%clk 0:01:59.1]} 22. Bf4 {[%clk 0:02:15.3]}
22... Ng6 {[%clk 0:01:52.3]} 23. Bxd6 {[%clk 0:02:14.4]} 23... Qxe2 {[%clk
0:01:52.1]} 24. Nc7 {[%clk 0:02:14.6]} 24... Qe3+ {[%clk 0:01:39.7]} 25. Kh1
{[%clk 0:02:13.5]} 25... Nd3 {[%clk 0:01:39.7]} 26. Rb3 {[%clk 0:01:58.7]} 26...
Nf2+ {[%clk 0:01:34.4]} 27. Rxf2 {[%clk 0:01:58.7]} 27... Qxf2 {[%clk
0:01:35.3]} 28. c5 {[%clk 0:01:57.6]} 28... Nh4 {[%clk 0:01:20.2]} 29. Qg1
{[%clk 0:01:45.9]} 29... Qxg1+ {[%clk 0:01:16.9]} 30. Kxg1 {[%clk 0:01:36.4]}
30... Nxf3+ {[%clk 0:01:09.6]} 31. gxf3 {[%clk 0:01:36.5]} 31... Re1+ {[%clk
0:01:02.4]} 32. Kg2 {[%clk 0:01:31.6]} 32... Rxa4 {[%clk 0:00:41.4]} 33. Rxb6
{[%clk 0:01:30.8]} 33... Re2+ {[%clk 0:00:24.7]} 34. Kf1 {[%clk 0:01:28.5]}
34... Rc2 {[%clk 0:00:20.6]} 35. Rb1 {[%clk 0:01:24.5]} 35... Ba6+ {[%clk
0:00:17.9]} 36. Nxa6 {[%clk 0:01:20.1]} 36... Rxa6 {[%clk 0:00:18.8]} 37. c6
{[%clk 0:01:19.6]} 37... Kf7 {[%clk 0:00:18.3]} 38. Bg3 {[%clk 0:01:14.3]} 38...
Ra1 {[%clk 0:00:14.5]} 39. Rxa1 {[%clk 0:01:13.6]} 39... Bxa1 {[%clk 0:00:15.4]}
40. Ke1 {[%clk 0:01:09.1]} 40... Bf6 {[%clk 0:00:14]} 41. Bf2 {[%clk 0:01:06.6]}
41... Ke7 {[%clk 0:00:13.4]} 42. Bg3 {[%clk 0:01:06.4]} 42... Rc5 {[%clk
0:00:12.6]} 43. d6+ {[%clk 0:01:06.2]} 43... Kd8 {[%clk 0:00:12.3]} 44. c7+
{[%clk 0:01:05.5]} 44... Kd7 {[%clk 0:00:12.9]} 45. Ke2 {[%clk 0:01:03.5]} 45...
g5 {[%clk 0:00:13.4]} 46. f4 {[%clk 0:01:00]} 46... h6 {[%clk 0:00:13.8]} 47.
fxg5 {[%clk 0:00:58.8]} 47... hxg5 {[%clk 0:00:14.7]} 48. Bf2 {[%clk 0:00:56.5]}
48... Rc2+ {[%clk 0:00:14.2]} 49. Kf3 {[%clk 0:00:56.2]} 49... Be5 {[%clk
0:00:14.1]} 50. Be3 {[%clk 0:00:53.7]} 50... Rc3 {[%clk 0:00:12.2]} 51. Ke2
{[%clk 0:00:53.7]} 51... Rxe3+ {[%clk 0:00:11.7]} 52. Kxe3 {[%clk 0:00:54]}
52... Bxd6 {[%clk 0:00:12.6]} 53. Kd3 {[%clk 0:00:54.3]} 53... Bxc7 {[%clk
0:00:12.9]} 54. Kd4 {[%clk 0:00:54.8]} 54... Ke6 {[%clk 0:00:13.4]} 55. Ke3
{[%clk 0:00:54.6]} 55... Be5 {[%clk 0:00:14]} 56. Kf3 {[%clk 0:00:54.7]} 56...
Kd5 {[%clk 0:00:14.4]} 57. Ke3 {[%clk 0:00:55.1]} 57... Bd4+ {[%clk 0:00:14.1]}
58. Kd3 {[%clk 0:00:55.1]} 58... Ke5 {[%clk 0:00:14.6]} 59. Ke2 {[%clk
0:00:54.6]} 59... Ke4 {[%clk 0:00:15.1]} 60. Kf1 {[%clk 0:00:54.8]} 60... Kf3
{[%clk 0:00:15.5]} 61. Ke1 {[%clk 0:00:54.8]} 61... Kg2 {[%clk 0:00:15.8]} 62.
Ke2 {[%clk 0:00:55.2]} 62... f4 {[%clk 0:00:15.9]} 63. Ke1 {[%clk 0:00:55.1]}
63... f3 {[%clk 0:00:16.3]} 64. Kd2 {[%clk 0:00:55.9]} 64... f2 {[%clk
0:00:16.7]} 65. Kd3 {[%clk 0:00:56.8]} 65... f1=Q+ {[%clk 0:00:17.1]} 66. Kxd4
{[%clk 0:00:57.1]} 66... Kxh3 {[%clk 0:00:17.5]} 67. Ke5 {[%clk 0:00:57.4]}
67... g4 {[%clk 0:00:18.4]} 68. Kd6 {[%clk 0:00:57.6]} 68... g3 {[%clk
0:00:19.3]} 69. Ke6 {[%clk 0:00:58.2]} 69... g2 {[%clk 0:00:20.2]} 70. Kd6
{[%clk 0:00:59.1]} 70... g1=Q {[%clk 0:00:20.6]} 71. Ke6 {[%clk 0:01:00]} 71...
Qe3+ {[%clk 0:00:20.4]} 72. Kd6 {[%clk 0:01:00.9]} 72... Qd1+ {[%clk 0:00:21]}
73. Kc6 {[%clk 0:01:01]} 73... Qc3+ {[%clk 0:00:21.6]} 74. Kb5 {[%clk
0:01:01.5]} 74... Qb1+ {[%clk 0:00:22.4]} 75. Ka4 {[%clk 0:01:01.8]} 75... Qca1#
{[%clk 0:00:23.3]} 0-1

[Event "*** Titled Tuesday Blitz"]
[Site "Chess.com"]
[Date "2020.11.03"]
[Round "4"]
[White "gixfantastix"]
[Black "InitiatingASC"]
[Result "0-1"]
[WhiteElo "2114"]
[BlackElo "2386"]
[TimeControl "180+1"]
[EndTime "10:42:29 PST"]
[Termination "InitiatingASC won on time"]

1. d4 {[%clk 0:03:00.9]} 1... Nf6 {[%clk 0:02:59.3]} 2. f4 {[%clk 0:03:01.3]}
2... e6 {[%clk 0:02:56.8]} 3. Nf3 {[%clk 0:03:01.6]} 3... c5 {[%clk 0:02:57]} 4.
e3 {[%clk 0:03:01.2]} 4... b6 {[%clk 0:02:55.8]} 5. Bd3 {[%clk 0:02:59]} 5...
Bb7 {[%clk 0:02:54.6]} 6. O-O {[%clk 0:02:58.3]} 6... cxd4 {[%clk 0:02:50.8]} 7.
exd4 {[%clk 0:02:57.9]} 7... Be7 {[%clk 0:02:50.7]} 8. Qe1 {[%clk 0:02:57.4]}
8... d6 {[%clk 0:02:50]} 9. Nbd2 {[%clk 0:02:55.5]} 9... Nbd7 {[%clk 0:02:49.7]}
10. Qg3 {[%clk 0:02:54]} 10... O-O {[%clk 0:02:47.3]} 11. Qh3 {[%clk 0:02:53.3]}
11... Re8 {[%clk 0:02:46.7]} 12. Ng5 {[%clk 0:02:48.6]} 12... Nf8 {[%clk
0:02:46.8]} 13. c3 {[%clk 0:02:29.7]} 13... Qc7 {[%clk 0:02:45.6]} 14. f5 {[%clk
0:02:05.6]} 14... e5 {[%clk 0:02:32.7]} 15. Nde4 {[%clk 0:01:54.9]} 15... a6
{[%clk 0:02:10.8]} 16. Nxf6+ {[%clk 0:01:49.1]} 16... Bxf6 {[%clk 0:02:10.6]}
17. Ne4 {[%clk 0:01:49.3]} 17... Bxe4 {[%clk 0:01:59.5]} 18. Bxe4 {[%clk
0:01:50.2]} 18... Rad8 {[%clk 0:01:55.3]} 19. d5 {[%clk 0:01:41.7]} 19... b5
{[%clk 0:01:50.8]} 20. g4 {[%clk 0:01:41.1]} 20... Qe7 {[%clk 0:01:39]} 21. Qh5
{[%clk 0:00:52.7]} 21... h6 {[%clk 0:01:34.5]} 22. Be3 {[%clk 0:00:45.6]} 22...
Nh7 {[%clk 0:01:33.8]} 23. a4 {[%clk 0:00:28.3]} 23... b4 {[%clk 0:00:56.3]} 24.
c4 {[%clk 0:00:27]} 24... Bg5 {[%clk 0:00:50.5]} 25. Bxg5 {[%clk 0:00:19.5]}
25... Qxg5 {[%clk 0:00:49.5]} 26. Qh3 {[%clk 0:00:17.8]} 26... a5 {[%clk
0:00:44.8]} 27. b3 {[%clk 0:00:17.6]} 27... Qd2 {[%clk 0:00:38.1]} 28. Rae1
{[%clk 0:00:18.5]} 28... Ng5 {[%clk 0:00:37.1]} 29. Qg2 {[%clk 0:00:17.8]} 29...
Qc3 {[%clk 0:00:27.7]} 30. h4 {[%clk 0:00:17.3]} 30... Nh3+ {[%clk 0:00:19]} 31.
Kh2 {[%clk 0:00:16.4]} 31... Nf4 {[%clk 0:00:19]} 32. Qg3 {[%clk 0:00:15.1]}
32... Qb2+ {[%clk 0:00:18.2]} 33. Rf2 {[%clk 0:00:14.3]} 33... Qd4 {[%clk
0:00:18]} 34. g5 {[%clk 0:00:13.8]} 34... h5 {[%clk 0:00:12.5]} 35. g6 {[%clk
0:00:09.4]} 35... fxg6 {[%clk 0:00:11]} 36. fxg6 {[%clk 0:00:09.3]} 36... Rf8
{[%clk 0:00:11.6]} 37. Bg2 {[%clk 0:00:08.3]} 37... Rf6 {[%clk 0:00:11.1]} 38.
Bh3 {[%clk 0:00:08.5]} 38... Rxg6 {[%clk 0:00:10.8]} 39. Be6+ {[%clk 0:00:08.1]}
39... Kh8 {[%clk 0:00:10.5]} 40. Qf3 {[%clk 0:00:07.7]} 40... Rf8 {[%clk
0:00:09.3]} 41. Rg1 {[%clk 0:00:07]} 41... Rxg1 {[%clk 0:00:08.7]} 42. Qxh5+
{[%clk 0:00:05.5]} 42... Nxh5 {[%clk 0:00:08.2]} 43. Rxf8+ {[%clk 0:00:06.4]}
43... Kh7 {[%clk 0:00:08.4]} 44. Bf5+ {[%clk 0:00:03.7]} 44... g6 {[%clk
0:00:07.5]} 45. Rf7+ {[%clk 0:00:02.2]} 45... Ng7 {[%clk 0:00:07.7]} 0-1

[Event "*** Titled Tuesday Blitz"]
[Site "Chess.com"]
[Date "2020.11.03"]
[Round "4"]
[White "giantslayer83"]
[Black "Tashik"]
[Result "1/2-1/2"]
[WhiteElo "2705"]
[BlackElo "2501"]
[TimeControl "180+1"]
[EndTime "10:42:31 PST"]
[Termination "Game drawn by repetition"]

1. d4 {[%clk 0:03:00.9]} 1... Nf6 {[%clk 0:02:58.6]} 2. c4 {[%clk 0:03:00.1]}
2... c5 {[%clk 0:02:59.2]} 3. Nf3 {[%clk 0:02:57.3]} 3... cxd4 {[%clk
0:02:58.4]} 4. Nxd4 {[%clk 0:02:58.2]} 4... e6 {[%clk 0:02:59]} 5. Nc3 {[%clk
0:02:57.8]} 5... d5 {[%clk 0:02:59.6]} 6. cxd5 {[%clk 0:02:54.7]} 6... Nxd5
{[%clk 0:03:00.5]} 7. Bd2 {[%clk 0:02:45.2]} 7... Nf6 {[%clk 0:02:59.5]} 8. e3
{[%clk 0:02:44.4]} 8... Bd7 {[%clk 0:02:56.7]} 9. Be2 {[%clk 0:02:12.1]} 9...
Nc6 {[%clk 0:02:53.8]} 10. Nf3 {[%clk 0:02:12.2]} 10... Be7 {[%clk 0:02:38.2]}
11. O-O {[%clk 0:02:12.1]} 11... O-O {[%clk 0:02:38.8]} 12. a3 {[%clk
0:02:07.7]} 12... a6 {[%clk 0:02:31]} 13. e4 {[%clk 0:01:59.8]} 13... Qb8 {[%clk
0:02:29.3]} 14. Bg5 {[%clk 0:01:54.3]} 14... Rd8 {[%clk 0:02:23.3]} 15. Qc1
{[%clk 0:01:29.4]} 15... Ng4 {[%clk 0:02:08.1]} 16. Bxe7 {[%clk 0:01:27.1]}
16... Nxe7 {[%clk 0:02:09]} 17. Qg5 {[%clk 0:01:25.4]} 17... Nf6 {[%clk
0:01:59.8]} 18. e5 {[%clk 0:01:24.7]} 18... Nfd5 {[%clk 0:01:59.3]} 19. Nxd5
{[%clk 0:00:37.3]} 19... Nxd5 {[%clk 0:02:00.2]} 20. Rfd1 {[%clk 0:00:37.8]}
20... h6 {[%clk 0:01:54.8]} 21. Qg3 {[%clk 0:00:37.6]} 21... Bb5 {[%clk
0:01:51.3]} 22. Bxb5 {[%clk 0:00:35.5]} 22... axb5 {[%clk 0:01:52.2]} 23. Nd2
{[%clk 0:00:34.4]} 23... Ra4 {[%clk 0:01:47.1]} 24. b4 {[%clk 0:00:27]} 24...
Ne7 {[%clk 0:01:44.4]} 25. Ne4 {[%clk 0:00:25.8]} 25... Ng6 {[%clk 0:01:23.9]}
26. Nd6 {[%clk 0:00:22.5]} 26... Ra6 {[%clk 0:01:08.3]} 27. f4 {[%clk
0:00:19.1]} 27... Ne7 {[%clk 0:00:21.2]} 28. Qf2 {[%clk 0:00:19]} 28... Nd5
{[%clk 0:00:19]} 29. Nxb5 {[%clk 0:00:18.8]} 29... Rc8 {[%clk 0:00:12.7]} 30.
Rac1 {[%clk 0:00:18.4]} 30... Rac6 {[%clk 0:00:12.1]} 31. Rxc6 {[%clk
0:00:17.8]} 31... Rxc6 {[%clk 0:00:13]} 32. g3 {[%clk 0:00:18.2]} 32... Qa8
{[%clk 0:00:10.2]} 33. Qa7 {[%clk 0:00:13.4]} 33... Qxa7+ {[%clk 0:00:10]} 34.
Nxa7 {[%clk 0:00:14.3]} 34... Rc2 {[%clk 0:00:10]} 35. Nb5 {[%clk 0:00:14.7]}
35... Ra2 {[%clk 0:00:08.2]} 36. Rc1 {[%clk 0:00:14.4]} 36... Ne3 {[%clk
0:00:06.4]} 37. Rc8+ {[%clk 0:00:13]} 37... Kh7 {[%clk 0:00:06.9]} 38. Rc7
{[%clk 0:00:13.9]} 38... Kg6 {[%clk 0:00:04.9]} 39. Rxb7 {[%clk 0:00:13.8]}
39... Ng4 {[%clk 0:00:04.5]} 40. Nd6 {[%clk 0:00:12.5]} 40... Nxh2 {[%clk
0:00:03.8]} 41. Nxf7 {[%clk 0:00:05.6]} 41... Nf3+ {[%clk 0:00:04.2]} 42. Kf1
{[%clk 0:00:05.9]} 42... Rd2 {[%clk 0:00:04.8]} 43. Nd6 {[%clk 0:00:01.5]} 43...
Nh2+ {[%clk 0:00:05.2]} 44. Kg1 {[%clk 0:00:02.1]} 44... Nf3+ {[%clk 0:00:06.1]}
45. Kf1 {[%clk 0:00:02.7]} 45... Nh2+ {[%clk 0:00:06.7]} 46. Ke1 {[%clk
0:00:03.3]} 46... Nf3+ {[%clk 0:00:07.6]} 47. Kf1 {[%clk 0:00:03.9]} 1/2-1/2